Cogmind - Beta 13 @@@ ROGUE MODE // 2024.04.11 @ 23:10:58 Player: Gargash Result: Destroyed by as-26005 with Assembled F-torch Performance ------------- Evolutions (0) 0 Regions Visited (2) 400 Robots Destroyed (10) 50 Value Destroyed (191) 191 Prototype IDs (2) 40 Alien Tech Used (0) 0 Bonus (0) 0 TOTAL SCORE: 681 Bonus ------- None Cogmind --------- Core Integrity 0/250 Matter 293/300 Energy 100/100 System Corruption 15% Temperature Cool (20) Movement Core (100) Ox1 Location -10/Mines Parts ------- > --- POWER (1) -------- (None) > --- PROPULSION (2) --- (None) > --- UTILITY (2) ------ Small Storage Unit > --- WEAPON (2) ------- (None) > --- INVENTORY (8) ---- Aluminum Leg Aluminum Leg Small Matter Pod (41) Small Laser Peak State ------------ > --- POWER ------------ Light Nuclear Core > --- PROPULSION ------- Aluminum Leg Aluminum Leg > --- UTILITY ---------- Small Storage Unit Seismic Detector > --- WEAPON ----------- Particle Gun Light Assault Rifle > --- INVENTORY -------- Ion Engine Aluminum Leg Aluminum Leg Small Storage Unit Small Matter Pod Small Laser [Rating: 10] Favorites ----------- Power Light Nuclear Core Engine Ion Engine Power Core Light Nuclear Core Propulsion Aluminum Leg Treads Light Treads Leg Aluminum Leg Utility Small Storage Unit Device Seismic Detector Storage Small Storage Unit Weapon Assault Rifle Energy Gun EM Pulse Gun Ballistic Gun Assault Rifle Special Weapon Mining Laser Build | -11 -10 -10 ------- Run | Yrd Mat Min Slots Evolved . | . . . Power . | . . . Propulsion . | . . . Utility . | . . . Weapon . | . . . Parts Attached 19 | 9 4 6 Power 3 | 1 1 1 Engine 2 | 1 . 1 Core 1 | . 1 . Reactor . | . . . Propulsion 8 | 4 2 2 Treads 2 | 2 . . Leg 6 | 2 2 2 Wheel . | . . . Hover . | . . . Flight . | . . . Utility 3 | 2 . 1 Device 1 | 1 . . Storage 2 | 1 . 1 Processor . | . . . Hackware . | . . . Protection . | . . . Artifact . | . . . Weapon 5 | 2 1 2 Energy Gun 2 | 1 . 1 Energy Cannon . | . . . Ballistic Gun 2 | 1 . 1 Ballistic Cannon . | . . . Launcher . | . . . Special Weapon 1 | . 1 . Impact Weapon . | . . . Slashing Weapon . | . . . Piercing Weapon . | . . . Special Melee Weapon . | . . . Unidentified Prototypes . | . . . Parts Lost 10 | . 2 8 Power 2 | . . 2 Propulsion 2 | . . 2 Utility 2 | . . 2 Weapon 4 | . 2 2 Highest Loss Streak 8 | . 2 8 To Critical Strikes . | . . . Average Slot Usage (%) 95 | . 99 93 Engine 2 | . 5 . Core 11 | . 8 13 Leg 27 | . 28 27 Device 13 | . 14 12 Storage 14 | . 14 14 Energy Gun 9 | . 7 10 Ballistic Gun 13 | . 14 13 Special Weapon 2 | . 5 . Naked Turns . | . . . Heaviest Build 19 | 15 15 19 Greatest Support 40 | 40 20 20 Greatest Overweight (x) 1 | . . 1 Average Overweight (x) . | . . . Largest Inventory Capacity 8 | 8 8 8 Average Capacity 7 | 7 8 8 Most Carried 8 | 8 8 8 Average Carried 6 | 5 7 6 Final Capacity 8 | 8 8 8 Final Carried 8 | 8 7 4 Class Distribution -------------------- 51% | Scavenger-Mutant 48% | Mutant Dominant Class ---------------- Scavenger-Mutant | -10/Materials Scavenger-Mutant | -10/Mines Resources | -11 -10 -10 ----------- Run | Yrd Mat Min Matter Collected 455 | 323 48 84 Remotely . | . . . Salvage Created 356 | 175 97 84 Parts 25 | 12 7 6 Haulers Intercepted . | . . . Recyclers Shooed . | . . . Parts Field Recycled . | . . . Retrieved Matter . | . . . Parts Self-Destructed . | . . . Prevented . | . . . Kills | -11 -10 -10 ------- Run | Yrd Mat Min Combat Hostiles Destroyed 4 | . 2 2 Guns 4 | . 2 2 Classes Destroyed 4 | 3 1 . Worker 2 | 2 . . Tunneler 3 | 3 . . Recycler 1 | 1 . . Grunt 4 | . 2 2 Best Kill Streak 3 | 3 2 2 Combat Bots Only 2 | . 2 2 Max Kills in Single Turn 1 | 1 1 1 Gunslinging . | . . . Exploded . | . . . Melee . | . . . Uniques/NPCs Destroyed . | . . . Combat | -11 -10 -10 -------- Run | Yrd Mat Min Hostile Shots Fired 110 | . 36 74 Missed 31 | . 13 18 Damage Taken 1197 | . 321 876 Core 251 | . 22 229 Absorbed by Shields . | . . . Core Remaining (%) 100 | 100 . . Volleys Fired 38 | 11 11 16 Largest 2 | 2 2 2 Hottest 85 | 60 60 85 Shots Fired 58 | 22 17 19 Gun 58 | 22 17 19 Cannon . | . . . Launcher . | . . . Special . | . . . Kinetic 37 | 11 11 15 Thermal 4 | . . 4 Explosive . | . . . Electromagnetic 17 | 11 6 . Robot Hit Streak 11 | 4 4 11 Robot Miss Streak 3 | 3 2 2 Penetration Max . | . . . Secondary Targets . | . . . Shots Hit Robots 35 | 10 10 15 Core Hits 19 | 6 5 8 Critical Kills 1 | . . 1 Critical Parts Destroyed . | . . . Critical Strikes 1 | . . 1 Destroy 1 | . . 1 Melee Attacks . | . . . Impact . | . . . Slashing . | . . . Piercing . | . . . Sneak Attacks . | . . . Combat Hostiles . | . . . Follow-up Attacks . | . . . Damage Inflicted 475 | 178 137 160 Guns 436 | 139 137 160 Cannons . | . . . Explosions 39 | 39 . . Melee . | . . . Ramming . | . . . Kinetic 282 | 73 94 115 Thermal 84 | 39 . 45 Explosive . | . . . Electromagnetic 109 | 66 43 . Impact . | . . . Slashing . | . . . Piercing . | . . . Highest Corruption 15 | . . 15 Average Corruption 8 | . . 8 Corruption Purged . | . . . Corruption Blocked . | . . . Overload Shots . | . . . Overflow Damage . | . . . Projectiles . | . . . Explosions . | . . . Melee . | . . . Knockbacks . | . . . Impact . | . . . Kinetic . | . . . Secondary . | . . . Self-Inflicted Damage . | . . . Shots . | . . . Rammed . | . . . Targets Rammed . | . . . Kicked . | . . . Crushed . | . . . Highest Temperature 72 | . 72 54 Average Temperature 27 | . 37 19 Received Heat Transfer 386 | . 183 203 Siege Activations . | . . . Robots Corrupted . | . . . Combat Hostiles . | . . . Parts Fried . | . . . Impact Corruptions . | . . . Robots Melted . | . . . Combat Hostiles . | . . . Parts Melted . | . . . Heat Transferred 161 | 50 . 111 Parts Sabotaged . | . . . Parts Stolen . | . . . Parts Stripped . | . . . Power Chain Reactions 1 | 1 . . Alert | -11 -10 -10 ------- Run | Yrd Mat Min Peak Influence 74 | 30 74 71 Initial 21 | . 19 21 Average 47 | 9 58 67 Maximum Alert Level . | . . . Low Security (%) 100 | 100 100 100 Level 1 . | . . . Level 2 . | . . . Level 3 . | . . . Level 4 . | . . . Level 5 . | . . . High Security . | . . . Max Security . | . . . Squads Dispatched 2 | . 2 . Investigation . | . . . Extermination . | . . . Reinforcement 2 | . 2 . Assault . | . . . Garrison . | . . . Intercept . | . . . Searches Triggered . | . . . Construction Impeded . | . . . Haulers Reinforced . | . . . Active Scanning Responses . | . . . Cargo Convoy Interrupts . | . . . Stealth | -11 -10 -10 --------- Run | Yrd Mat Min Distress Signals 1 | . 1 . Communications Jammed . | . . . Distress Signals . | . . . Times Spotted 24 | . 5 19 Peak Tracking Total 17 | . 4 17 Tactical Retreats . | . . . Traps | -11 -10 -10 ------- Run | Yrd Mat Min Traps Triggered 1 | . 1 . Indirectly . | . . . Trap Hack Attempts . | . . . Triggered . | . . . Disarmed . | . . . Reprogrammed . | . . . Reused . | . . . Traps Extracted . | . . . Installed . | . . . Triggered . | . . . Machines | -11 -10 -10 ---------- Run | Yrd Mat Min Machines Disabled . | . . . Max in Single Turn . | . . . Machines Repaired . | . . . Machines Dismantled . | . . . Machines Sabotaged . | . . . Overloaded Fab Kills . | . . . Hacking | -11 -10 -10 --------- Run | Yrd Mat Min Machines Accessed 1 | . 1 . Terminals 1 | . 1 . Fabricators . | . . . Repair Stations . | . . . Recycling Units . | . . . Scanalyzers . | . . . Garrison Access . | . . . Total Hacks 2 | . 2 . Successful 1 | . 1 . Failed 1 | . 1 . Catastrophic . | . . . Database Lockouts . | . . . Manual . | . . . Terminals 2 | . 2 . Fabricators . | . . . Repair Stations . | . . . Recycling Units . | . . . Scanalyzers . | . . . Garrison Access . | . . . Terminal Hacks 1 | . 1 . Prototype ID Bank 1 | . 1 . Fabricator Hacks . | . . . Repair Station Hacks . | . . . Recycling Unit Hacks . | . . . Scanalyzer . | . . . Garrison Access Hacks . | . . . Unauthorized Hacks . | . . . Terminals . | . . . Fabricators . | . . . Repair Stations . | . . . Recycling Units . | . . . Scanalyzers . | . . . Garrison Access . | . . . Data Cores Recovered . | . . . Used . | . . . Hacking Detections . | . . . Full Trace Events . | . . . Feedback Events . | . . . Feedback Blocked . | . . . Robot Schematics Acquired . | . . . Robots Built . | . . . Authchips . | . . . Time . | . . . Total Robot Build Rating . | . . . Part Schematics Acquired . | . . . Parts Built . | . . . Authchips . | . . . Time . | . . . Total Part Build Rating . | . . . Parts Repaired . | . . . Time . | . . . Parts Recycled . | . . . Recycled Matter . | . . . Retrieved Matter . | . . . Retrieved Components . | . . . Parts Scanalyzed . | . . . Part Schematics Acquired . | . . . Parts Damaged . | . . . Bothacking | -11 -10 -10 ------------ Run | Yrd Mat Min Used RIF Installer . | . . . Robots Hacked . | . . . Non-combat . | . . . Combat . | . . . Robot Hacks Applied . | . . . Relay Couplers Released . | . . . Fabnet Peak Effective % . | . . . Robots Rewired . | . . . Allies Hacked . | . . . Hacks Repelled . | . . . Allies | -11 -10 -10 -------- Run | Yrd Mat Min Total Allies . | . . . Largest Group . | . . . Highest-Rated Group . | . . . Highest-Rated Ally . | . . . Total Orders . | . . . Ally Attacks . | . . . Total Damage . | . . . Kills . | . . . Allies Corrupted . | . . . Allies Melted . | . . . Intel | -11 -10 -10 ------- Run | Yrd Mat Min Robot Analysis Total . | . . . Derelict Logs Recovered . | . . . Drone Launches . | . . . Drone Recoveries . | . . . Exploration | -11 -10 -10 ------------- Run | Yrd Mat Min Turns Passed 804 | 248 197 359 Spaces Moved 526 | 151 128 247 Core 5 | 2 . 3 Treads 22 | 22 . . Legs 499 | 127 128 244 Wheels . | . . . Hover . | . . . Flight . | . . . Fastest Speed 50 | 50 120 100 Average Speed 121 | 124 120 120 Slowest Speed 190 | 160 120 190 Overloaded Moves . | . . . Propulsion Burnouts . | . . . Robots Hopped . | . . . Cave-ins Triggered . | . . . Exploration Rate (%) 29 | 9 23 56 Regions Visited 2 Branch Regions 1 Pre-discovered Areas . | . . . Known Exits Taken . | . . . Unknown Exits Taken 2 | 1 1 . Scrap Searched . | . . . Spaces Dug . | . . . Terrain Destroyed . | . . . Melee . | . . . Projectile . | . . . AOE . | . . . Terrain Rammed . | . . . Walls Destroyed . | . . . Machines Disabled . | . . . Actions | -11 -10 -10 --------- Run | Yrd Mat Min Total 641 | 188 159 294 Wait 19 | . . 19 Move 524 | 150 127 247 Hop . | . . . Pick Up 26 | 16 7 3 Fast Attach 1 | 1 . . Attach 11 | 6 1 4 Detach . | . . . Swap 7 | 2 3 2 Drop 15 | 2 10 3 Fire 38 | 11 11 16 Melee . | . . . Ram . | . . . Kick . | . . . Crush . | . . . Escape Stasis . | . . . Rewire . | . . . Trap . | . . . Miscellaneous . | . . . Route ------- -11/Scrapyard -10/Materials -10/Mines (discovered 1 exit: [*Mat]) History --------- Turn | Location | Event 29 | -11/Scrapyard | Discovered new exit (range 15) 249 | -11/Scrapyard | Entered Materials 307 | -10/Materials | Build established: Mutant 429 | -10/Materials | Discovered new exit (range 12) 446 | -10/Materials | Entered Mines 513 | -10/Mines | Discovered new exit (range 6) 767 | -10/Mines | Assembled infested the area 799 | -10/Mines | System corruption reached 10% 804 | -10/Mines | Core integrity fell below 50% 805 | -10/Mines | Core integrity fell below 20% 805 | -10/Mines | Destroyed by as-26005 with Assembled F-torch Last Messages --------------- EXIT=FOUND K-01 Serf collects debris. ALERT: Infestation in the mines, dispatching Demolisher response squad. K-01 Serf destroyed. R-06 Scavenger destroyed. Seismic Detector destroyed. Lgt. Nuclear Core destroyed. System corrupted by crushing effect (+5). Knocked back. Aluminum Leg destroyed. Knocked back. Lgt. Assault Rifle destroyed. Aluminum Leg destroyed. Ion Engine destroyed. System corrupted by crushing effect (+3). System corrupted by crushing effect (+4). Particle Gun destroyed. Sml. Storage Unit destroyed. System corrupted by crushing effect (+3). Map ----- +----------------------------------------------------+ | # #?????# #?? | | # ###???## #?? | | # ##???# ### ##?? | | # #???## ###?## #?? | | # #????# ##???## #?? | | ##????# #????# ###### #?? | | #????# #??# ####### #?? | | ##??# #?# ## #?? | | #??# ##?# ## #?? | | #??# ##??# ### ######?? | | #??# #???# #?# #??????? | | # ##??## ##???# ##?# #??????? | | ######????###?????# #???# #??????? | | ?????????????????? #????# #??????? | | ?????????????????# #?????# #??????? | | ?????????????????# ??????# #??????? | | ?????????????????## ??????# ##?????? | | ??????????????????#??????## ##????? | | ????????????????????????## ##???? | | ???????????????????????## ##??? | | ???????????????????????# ## ##?? | | ???????????????????????# #### #?? | | ??????????????????????## ???# #?? | | ???????????? ????????## ??## #?? | | ????????????# ??????## #??# #?? | | ????????????# ??????# @#### #?? | | ????????????# ??????# a## ##?? | | ???????????## ?????## aa a ##??? | | ??????????## ???## aa ##???? | | ??????????# ???# aaa a ##????? | | ??? ?????## ??## a #?????? | | ??? =%#### #?# aaa ##?????? | | ???? ## #??????? | | ????? """ ###??????? | | ????????#% """ a ###????????? | | ????????#= """ a##??????????? | | ????????# ##??????????? | | ????????## ### ##?????????? | | ??????????????# ##????????? | | ??????????????## ######???? | | ???????????????# ## ##??? | | ???????????????# #### ##?? | | ??????????????# ##??# #?? | | ??????????????# #???# #?? | | ??????????????# #???# ## #?? | | ??????????????## ##???## #### #?? | | ???????????????####?????####??#####?? | | ????????????????????????????????????? | | ????????????????????????????????????? | | ????????????????????????????????????? | +----------------------------------------------------+ Best States ------------- Heat Dissipation 25 Energy Generation 14 Energy Capacity 250 Matter Stores 300 Matter Capacity 300 Sight Range 16 Terrain Scan Density 10 Evasion (%) 55 Recoil Reduction 2 Item Schematics ----------------- None Robot Schematics ------------------ None Fabricated ------------ Nothing Alien Tech Used ----------------- None Achievements -------------- None Challenges ------------ None Game ------ Seed TachyonWardroneExoskeleton Manual? 0 Play Time 00:13:21 Cumulative 5.3 hours Start 2024.04.11 @ 22:58:28 End 2024.04.11 @ 23:10:58 Sessions 1 Manual Loads 0 Difficulty Rogue Special Mode None Game No. 4 Rogue 4 Adventurer 0 Explorer 0 Win Type - Total 0 Types 0/0/0/0/0/0/0/0/0 Lore% 1 Gallery% 8 Achievement% 8 Wizard Run 0 Options --------- Layout 1 ASCII 0 Keyboard 0 Movement Mouse Keybinds 0 Fullscreen 1 Font 24/Smallcaps Map View 50x35 Zoom Use 0% Tactical HUD 0 Map Filters NONE Filters NONE Steam 1 RUN: a9ab01f5-602b-48d6-9815-6667c27cbcc7